bitfinex/quotes_BTCUSD_20230831
["timestamp","ask_amount","ask_price","bid_price","bid_amount"]
[1693494184119,1.01984668,27181.0,27180.0,0.096]
[1693494184280,1.02050668,27181.0,27180.0,0.096]
[1693494184493,1.01222668,27181.0,27180.0,0.096]
[1693494184742,1.01240668,27181.0,27180.0,0.096]
[1693494184948,1.00550668,27181.0,27180.0,0.096]
[1693494185181,1.00556668,27181.0,27180.0,0.096]
[1693494185379,1.00586668,27181.0,27180.0,0.096]
[1693494185585,1.01012668,27181.0,27180.0,0.096]
[1693494185760,1.01054668,27181.0,27180.0,0.096]
[1693494185961,1.01108668,27181.0,27180.0,0.096]
[1693494186159,1.01468668,27181.0,27180.0,0.096]
[1693494186355,1.01366668,27181.0,27180.0,0.096]
[1693494186611,1.01270668,27181.0,27180.0,0.096]
[1693494186861,1.01366668,27181.0,27180.0,0.096]
[1693494187064,1.01114668,27181.0,27180.0,0.096]
[1693494187173,0.75764197,27181.0,27180.0,0.096]
[1693494187816,0.83654197,27181.0,27180.0,0.096]
[1693494188019,0.83432197,27181.0,27180.0,0.096]
[1693494188221,0.83594197,27181.0,27180.0,0.096]
[1693494188517,1.01724868,27181.0,27180.0,0.096]
[1693494188790,1.01832868,27181.0,27180.0,0.096]
[1693494188957,1.01874868,27181.0,27180.0,0.096]
[1693494189475,1.02114868,27181.0,27180.0,0.096]
[1693494189688,1.02156868,27181.0,27180.0,0.096]
[1693494189869,1.02210868,27181.0,27180.0,0.096]
[1693494190020,1.02354868,27181.0,27180.0,0.096]
[1693494190227,1.18219253,27181.0,27180.0,0.096]
[1693494190429,1.17625253,27181.0,27180.0,0.096]
[1693494190628,1.17475253,27181.0,27180.0,0.096]
[1693494190835,1.17379253,27181.0,27180.0,0.096]
[1693494191038,1.17433253,27181.0,27180.0,0.096]
[1693494191237,1.17547253,27181.0,27180.0,0.096]
[1693494191440,1.17577253,27181.0,27180.0,0.096]
[1693494191650,1.17559253,27181.0,27180.0,0.096]
[1693494191849,1.17553253,27181.0,27180.0,0.096]
[1693494192029,1.17667253,27181.0,27180.0,0.096]
[1693494192229,1.17661253,27181.0,27180.0,0.096]
[1693494192674,1.17655253,27181.0,27180.0,0.096]
[1693494192880,1.17679253,27181.0,27180.0,0.096]
[1693494193069,1.18111253,27181.0,27180.0,0.096]
[1693494193269,1.17973253,27181.0,27180.0,0.096]
[1693494193490,1.17949253,27181.0,27180.0,0.096]
[1693494193691,1.17931253,27181.0,27180.0,0.096]
[1693494193890,1.18465253,27181.0,27180.0,0.096]
[1693494194093,1.18333253,27181.0,27180.0,0.096]
[1693494194297,1.18261253,27181.0,27180.0,0.096]
[1693494194712,1.18207253,27181.0,27180.0,0.096]
[1693494194909,1.17637253,27181.0,27180.0,0.096]
[1693494195123,0.95180582,27181.0,27180.0,0.096]
[1693494195355,0.94928582,27181.0,27180.0,0.096]
[1693494195558,0.96068582,27181.0,27180.0,0.096]
[1693494195764,0.96512582,27181.0,27180.0,0.096]
[1693494195982,0.97466582,27181.0,27180.0,0.096]
[1693494196216,1.19172491,27181.0,27180.0,0.096]
[1693494196421,1.21032491,27181.0,27180.0,0.096]
[1693494196622,1.21068491,27181.0,27180.0,0.096]
[1693494196969,1.19490491,27181.0,27180.0,0.096]
[1693494197127,1.20132491,27181.0,27180.0,0.096]
[1693494197342,1.20786491,27181.0,27180.0,0.096]
[1693494197543,1.20966491,27181.0,27180.0,0.096]
[1693494197752,1.20768491,27181.0,27180.0,0.096]
[1693494197959,1.20576491,27181.0,27180.0,0.096]
[1693494198160,1.20618491,27181.0,27180.0,0.096]
[1693494198450,1.20492491,27181.0,27180.0,0.096]
[1693494198651,1.20318491,27181.0,27180.0,0.096]
[1693494198859,1.20114491,27181.0,27180.0,0.096]
[1693494199068,1.19538491,27181.0,27180.0,0.096]
[1693494199269,1.19532491,27181.0,27180.0,0.096]
[1693494199474,1.19526491,27181.0,27180.0,0.096]
[1693494199677,0.97640582,27181.0,27180.0,0.096]
[1693494199884,0.96446582,27181.0,27180.0,0.096]
[1693494200095,0.96632582,27181.0,27180.0,0.096]
[1693494200328,0.97220582,27181.0,27180.0,0.096]
[1693494200529,0.97322582,27181.0,27180.0,0.096]
[1693494200729,0.97382582,27181.0,27180.0,0.096]
[1693494200917,0.97460582,27181.0,27180.0,0.096]
[1693494201298,1.22725891,27181.0,27180.0,0.096]
[1693494201525,1.22833891,27181.0,27180.0,0.096]
[1693494201698,1.22635891,27181.0,27180.0,0.096]
[1693494201899,1.22593891,27181.0,27180.0,0.096]
[1693494202105,1.22581891,27181.0,27180.0,0.096]
[1693494202302,1.22587891,27181.0,27180.0,0.096]
[1693494202506,1.22533891,27181.0,27180.0,0.096]
[1693494202687,1.22701891,27181.0,27180.0,0.096]
[1693494202914,1.22521891,27181.0,27180.0,0.096]
[1693494203115,1.49062675,27181.0,27180.0,0.096]
[1693494203312,1.48984675,27181.0,27180.0,0.096]
[1693494203517,1.49164675,27181.0,27180.0,0.096]
[1693494203786,1.48138675,27181.0,27180.0,0.096]
[1693494203990,1.48174675,27181.0,27180.0,0.096]
[1693494204202,1.48204675,27181.0,27180.0,0.096]
[1693494204406,1.48192675,27181.0,27180.0,0.096]
[1693494204610,1.49008675,27181.0,27180.0,0.096]
[1693494204827,1.48900675,27181.0,27180.0,0.096]
[1693494205031,1.48858675,27181.0,27180.0,0.096]
[1693494205204,1.48870675,27181.0,27180.0,0.096]
[1693494205434,1.48294675,27181.0,27180.0,0.096]
[1693494205615,1.48264675,27181.0,27180.0,0.096]
[1693494205820,1.48000675,27181.0,27180.0,0.096]
[1693494205969,1.47088675,27181.0,27180.0,0.096]
[1693494206175,1.47226675,27181.0,27180.0,0.096]
[1693494206382,1.47502675,27181.0,27180.0,0.096]
[1693494206585,1.47478675,27181.0,27180.0,0.096]
[1693494206772,1.47436675,27181.0,27180.0,0.096]
[1693494207154,1.22057366,27181.0,27180.0,0.096]
[1693494207286,1.27107791,27181.0,27180.0,0.096]
[1693494207490,1.27113791,27181.0,27180.0,0.096]
[1693494207690,1.28067791,27181.0,27180.0,0.096]
[1693494207945,1.28103791,27181.0,27180.0,0.096]
[1693494208147,1.56832532,27181.0,27180.0,0.096]
[1693494208347,1.57318532,27181.0,27180.0,0.096]
[1693494208564,1.58320532,27181.0,27180.0,0.096]
[1693494208755,1.58656532,27181.0,27180.0,0.096]
[1693494209073,1.56094532,27181.0,27180.0,0.096]
[1693494209228,1.86188422,27181.0,27180.0,0.096]
[1693494209437,1.86284422,27181.0,27180.0,0.096]
[1693494209630,1.86812422,27181.0,27180.0,0.096]
[1693494209843,1.86524422,27181.0,27180.0,0.096]
[1693494210044,1.85918422,27181.0,27180.0,0.096]
[1693494210245,1.85120422,27181.0,27180.0,0.096]
[1693494210447,1.85438422,27181.0,27180.0,0.096]
[1693494210737,1.85330422,27181.0,27180.0,0.096]
[1693494210916,1.56511681,27181.0,27180.0,0.096]
[1693494211238,1.49635681,27181.0,27180.0,0.096]
[1693494222408,1.55953681,27181.0,27180.0,0.096]
[1693494222617,1.56061681,27181.0,27180.0,0.096]
[1693494222843,1.56043681,27181.0,27180.0,0.096]
[1693494223017,1.56103681,27181.0,27180.0,0.096]
[1693494223247,1.56097681,27181.0,27180.0,0.096]
[1693494223453,1.56085681,27181.0,27180.0,0.096]
[1693494223636,1.75336522,27181.0,27180.0,0.096]
[1693494223772,1.75402522,27181.0,27180.0,0.096]
[1693494224186,1.75408522,27181.0,27180.0,0.096]
[1693494224379,1.75396522,27181.0,27180.0,0.096]
[1693494224637,1.75378522,27181.0,27180.0,0.096]
[1693494224843,1.75360522,27181.0,27180.0,0.096]
[1693494225060,1.68934522,27181.0,27180.0,0.096]
[1693494226901,1.76800522,27181.0,27180.0,0.096]
[1693494227083,1.78912522,27181.0,27180.0,0.096]
[1693494227312,1.49070632,27181.0,27180.0,0.096]
[1693494227509,1.49214632,27181.0,27180.0,0.096]
[1693494227714,1.49160632,27181.0,27180.0,0.096]
[1693494227946,1.49130632,27181.0,27180.0,0.096]
[1693494228124,1.49100632,27181.0,27180.0,0.096]
[1693494228353,1.49070632,27181.0,27180.0,0.096]
[1693494228475,1.49022632,27181.0,27180.0,0.096]
[1693494228693,1.48902632,27181.0,27180.0,0.096]
[1693494228906,1.49172632,27181.0,27180.0,0.096]
[1693494229142,1.49142632,27181.0,27180.0,0.096]
[1693494229340,1.48788632,27181.0,27180.0,0.096]
[1693494229588,1.48680632,27181.0,27180.0,0.096]
[1693494229911,1.48482632,27181.0,27180.0,0.096]
[1693494230120,1.48824632,27181.0,27180.0,0.096]
[1693494230336,1.51416632,27181.0,27180.0,0.096]
[1693494230557,1.64994632,27181.0,27180.0,0.096]
[1693494230757,1.64874632,27181.0,27180.0,0.096]
[1693494230966,1.50186632,27181.0,27180.0,0.096]
[1693494231173,1.49400632,27181.0,27180.0,0.096]
[1693494231377,1.49382632,27181.0,27180.0,0.096]
[1693494231601,1.49370632,27181.0,27180.0,0.096]
[1693494231807,1.49358632,27181.0,27180.0,0.096]
[1693494231985,1.49352632,27181.0,27180.0,0.096]
[1693494232143,1.49280632,27181.0,27180.0,0.096]
[1693494232533,1.49070632,27181.0,27180.0,0.096]
[1693494232734,1.49088632,27181.0,27180.0,0.096]
[1693494232998,1.49094632,27181.0,27180.0,0.096]
[1693494233205,1.49052632,27181.0,27180.0,0.096]
[1693494233416,1.66593632,27181.0,27180.0,0.096]
[1693494233623,1.66527632,27181.0,27180.0,0.096]
[1693494233845,1.66347632,27181.0,27180.0,0.096]
[1693494234056,1.66317632,27181.0,27180.0,0.096]
[1693494234258,1.66509632,27181.0,27180.0,0.096]
[1693494234401,1.66611632,27181.0,27180.0,0.096]
[1693494234602,1.66947632,27181.0,27180.0,0.096]
[1693494234825,1.67271632,27181.0,27180.0,0.096]
[1693494235083,1.67289632,27181.0,27180.0,0.096]
[1693494235295,1.66947632,27181.0,27180.0,0.096]
[1693494235403,1.66461632,27181.0,27180.0,0.096]
[1693494235611,1.66455632,27181.0,27180.0,0.096]
[1693494236021,1.48194632,27181.0,27180.0,0.096]
[1693494236226,1.48284632,27181.0,27180.0,0.096]
[1693494236427,1.48326632,27181.0,27180.0,0.096]
[1693494236637,1.48548632,27181.0,27180.0,0.096]
[1693494236846,1.48536632,27181.0,27180.0,0.096]
[1693494237051,1.48344632,27181.0,27180.0,0.096]
[1693494237531,1.48500632,27181.0,27180.0,0.096]
[1693494237695,1.48428632,27181.0,27180.0,0.096]
[1693494237897,1.48554632,27181.0,27180.0,0.096]
[1693494238144,1.48236632,27181.0,27180.0,0.096]
[1693494238633,1.47978632,27181.0,27180.0,0.096]
[1693494238851,1.47984632,27181.0,27180.0,0.096]
[1693494239254,1.47810632,27181.0,27180.0,0.096]
[1693494239480,1.47804632,27181.0,27180.0,0.096]
[1693494239621,1.47990632,27181.0,27180.0,0.096]
[1693494240068,1.47618632,27181.0,27180.0,0.096]
[1693494240271,1.48212632,27181.0,27180.0,0.096]
[1693494240486,1.48254632,27181.0,27180.0,0.096]
[1693494240630,1.27899791,27181.0,27180.0,0.096]
[1693494240842,1.27929791,27181.0,27180.0,0.096]
[1693494241081,1.27977791,27181.0,27180.0,0.096]
[1693494241277,1.27893791,27181.0,27180.0,0.096]
[1693494241439,1.27803791,27181.0,27180.0,0.096]
[1693494241653,1.27809791,27181.0,27180.0,0.096]
[1693494241907,1.27815791,27181.0,27180.0,0.096]
[1693494242080,1.17391259,27181.0,27180.0,0.351542]
[1693494242282,1.17391259,27181.0,27180.0,0.39747724]
[1693494242283,0.26166112,27181.0,27180.0,0.39747724]
[1693494242484,0.055,27184.0,27183.0,0.195]
[1693494242485,0.32002487,27184.0,27183.0,0.195]
[1693494242788,0.26502487,27184.0,27183.0,0.2165]
[1693494243004,0.26502487,27185.0,27183.0,0.2165]
[1693494243223,0.29819553,27187.0,27183.0,0.3248]
[1693494243224,0.39105728,27184.0,27183.0,0.3248]
[1693494243429,0.39105728,27184.0,27183.0,0.2165]
[1693494243633,0.55375453,27187.0,27184.0,0.13034071]
[1693494243634,0.26502487,27185.0,27184.0,0.13034071]
[1693494243834,0.39098719,27185.0,27184.0,0.13034071]
[1693494244045,0.39098719,27185.0,27184.0,0.15752478]
[1693494244669,0.39098719,27185.0,27184.0,0.38188307]
[1693494245358,0.39498719,27185.0,27184.0,0.38188307]
[1693494245567,0.008,27185.0,27184.0,0.41788307]
[1693494246004,0.004,27185.0,27184.0,0.41788307]
[1693494246439,0.008,27185.0,27184.0,0.45388307]
[1693494250427,0.2284011,27185.0,27184.0,0.45388307]
[1693494252577,0.2284011,27185.0,27184.0,0.426699]
[1693494254629,0.40464958,27185.0,27184.0,0.426699]
[1693494255237,0.51294958,27185.0,27184.0,0.20234071]
[1693494257460,0.70438195,27185.0,27184.0,0.20234071]
[1693494257613,0.91667197,27185.0,27184.0,0.20234071]
[1693494258046,0.91667197,27185.0,27184.0,0.167]
[1693494258494,0.69627087,27185.0,27184.0,0.20232971]
[1693494259215,0.20029002,27185.0,27184.0,0.52208891]
[1693494259584,0.18420906,27185.0,27184.0,0.52208891]
[1693494262994,0.3163346,27185.0,27184.0,0.52208891]
[1693494263202,0.14012554,27185.0,27184.0,0.52208891]
[1693494266997,0.09606343,27185.0,27184.0,0.52208891]
[1693494267374,0.09606343,27185.0,27184.0,0.48985594]
[1693494267578,0.22818897,27185.0,27184.0,0.48985594]
[1693494270183,0.09606343,27185.0,27184.0,0.48985594]
[1693494272958,0.09606343,27185.0,27184.0,0.50985594]
[1693494273176,0.008,27185.0,27184.0,0.32232971]
[1693494273384,0.008,27185.0,27184.0,0.35856268]
[1693494273606,0.008,27185.0,27184.0,0.60511231]
[1693494273811,0.008,27185.0,27184.0,0.6245524]
[1693494274018,0.008,27185.0,27184.0,0.83454353]
[1693494274956,0.008,27185.0,27184.0,0.85454353]
[1693494275363,0.008,27185.0,27184.0,1.28284353]
[1693494275541,0.004,27185.0,27184.0,1.24684353]
[1693494275949,0.002,27185.0,27184.0,1.23884353]
[1693494276357,0.08806343,27191.0,27190.0,0.115]
[1693494276561,0.08806343,27191.0,27190.0,0.1365]
[1693494276978,0.08806343,27191.0,27190.0,0.1717314]
[1693494277614,0.09106343,27191.0,27190.0,0.2087314]
[1693494278030,0.09406343,27191.0,27190.0,0.2457314]
[1693494278230,0.09406343,27191.0,27190.0,0.2242314]
[1693494280023,0.09406343,27191.0,27190.0,0.50099545]
[1693494282587,0.09400395,27191.0,27190.0,0.50099545]
[1693494284623,0.22600988,27191.0,27190.0,0.50099545]
[1693494285605,0.13800593,27191.0,27190.0,0.50099545]
[1693494285840,0.13800593,27191.0,27190.0,0.57192499]
[1693494286799,0.13800593,27191.0,27190.0,0.29516094]
[1693494287003,0.13800593,27191.0,27190.0,0.2242314]
[1693494287373,0.22604191,27191.0,27190.0,0.2242314]
[1693494287974,0.13800593,27191.0,27190.0,0.2242314]
[1693494289172,0.2903079,27191.0,27190.0,0.2242314]
[1693494289353,0.53787451,27191.0,27190.0,0.2242314]
[1693494289831,0.75788439,27191.0,27190.0,0.2242314]
[1693494293184,0.64958439,27191.0,27190.0,0.2242314]
[1693494293616,0.47357649,27191.0,27190.0,0.2242314]
[1693494294739,0.64970213,27191.0,27190.0,0.2242314]
[1693494296265,0.47357649,27191.0,27190.0,0.2242314]
[1693494300398,0.57559533,27191.0,27190.0,0.2042314]
[1693494300604,1.34851098,27191.0,27190.0,0.2042314]
[1693494300805,1.34611098,27191.0,27190.0,0.2042314]
[1693494301009,1.35031098,27191.0,27190.0,0.1092314]
[1693494301222,1.35031098,27191.0,27190.0,0.037]
[1693494301223,1.43069474,27191.0,27190.0,0.037]
[1693494301459,1.43009474,27191.0,27190.0,0.037]
[1693494301668,1.43063474,27191.0,27190.0,0.039]
[1693494301875,1.42679474,27191.0,27190.0,0.039]
[1693494302084,1.42679474,27191.0,27190.0,0.134]
[1693494302085,1.42055474,27191.0,27190.0,0.134]
[1693494302300,1.42019474,27191.0,27190.0,0.132]
[1693494302476,1.42025474,27191.0,27190.0,0.134]
[1693494302720,1.42037474,27191.0,27190.0,0.134]
[1693494302928,1.42067474,27191.0,27190.0,0.134]
[1693494303141,1.42043474,27191.0,27190.0,0.134]
[1693494303347,1.41983474,27191.0,27190.0,0.134]
[1693494303767,1.41947474,27191.0,27190.0,0.134]
[1693494303969,1.41929474,27191.0,27190.0,0.134]
[1693494304175,1.41911474,27191.0,27190.0,0.134]
[1693494304381,1.42049474,27191.0,27190.0,0.134]
[1693494304807,1.59281474,27191.0,27190.0,0.039]
[1693494305017,2.29474474,27191.0,27190.0,0.039]
[1693494305197,2.33086022,27191.0,27190.0,0.039]
[1693494305401,2.32822022,27191.0,27190.0,0.039]
[1693494305609,2.32650022,27191.0,27190.0,0.037]
[1693494305813,2.33226022,27191.0,27190.0,0.037]
[1693494306021,2.33274022,27191.0,27190.0,0.037]
[1693494306232,2.33226022,27191.0,27190.0,0.037]
[1693494306646,2.33166022,27191.0,27190.0,0.037]
[1693494306851,2.33178022,27191.0,27190.0,0.037]
[1693494307055,2.33118022,27191.0,27190.0,0.037]
[1693494307258,2.32998022,27191.0,27190.0,0.037]
[1693494307457,2.33070022,27191.0,27190.0,0.037]
[1693494307689,2.32866022,27191.0,27190.0,0.037]
[1693494307890,2.32962022,27191.0,27190.0,0.037]
[1693494308097,2.32806022,27191.0,27190.0,0.037]
[1693494308302,2.32782022,27191.0,27190.0,0.037]
[1693494308514,2.32950022,27191.0,27190.0,0.037]
[1693494308755,2.32734022,27191.0,27190.0,0.037]
[1693494308956,2.32662022,27191.0,27190.0,0.037]
[1693494309160,2.29914022,27191.0,27190.0,0.037]
[1693494309365,2.06146138,27191.0,27190.0,0.037]
[1693494309565,2.06116138,27191.0,27190.0,0.037]
[1693494309772,2.06092138,27191.0,27190.0,0.037]
[1693494309924,2.06026138,27191.0,27190.0,0.037]
[1693494310129,2.05894138,27191.0,27190.0,0.037]
[1693494310357,2.06350138,27191.0,27190.0,0.037]
[1693494310560,2.08910138,27191.0,27190.0,0.039]
[1693494310711,2.08760138,27191.0,27190.0,0.039]
[1693494311115,2.39589105,27191.0,27190.0,0.039]
[1693494311323,2.39649105,27191.0,27190.0,0.039]
[1693494311586,2.39697105,27191.0,27190.0,0.039]
[1693494311785,2.39673105,27191.0,27190.0,0.039]
[1693494312191,2.39415105,27191.0,27190.0,0.039]
[1693494312395,2.39373105,27191.0,27190.0,0.039]
[1693494312624,2.37113105,27191.0,27190.0,0.037]
[1693494312828,2.37107105,27191.0,27190.0,0.037]
[1693494313009,2.39473105,27191.0,27190.0,0.039]
[1693494313181,2.39791105,27191.0,27190.0,0.039]
[1693494313382,2.52775105,27191.0,27190.0,0.039]
[1693494313588,2.52979105,27191.0,27190.0,0.039]
[1693494313831,2.21988138,27191.0,27190.0,0.039]
[1693494313987,2.22240138,27191.0,27190.0,0.039]
[1693494314188,2.1878459,27191.0,27190.0,0.039]
[1693494314389,2.1872459,27191.0,27190.0,0.039]
[1693494314717,2.1868859,27191.0,27190.0,0.039]
[1693494314923,2.1872459,27191.0,27190.0,0.039]
[1693494315158,2.1866459,27191.0,27190.0,0.039]
[1693494315391,2.49684704,27191.0,27190.0,0.039]
[1693494315541,2.49480704,27191.0,27190.0,0.039]
[1693494315694,2.49420704,27191.0,27190.0,0.039]
[1693494315899,2.49408704,27191.0,27190.0,0.039]
[1693494316169,2.49660704,27191.0,27190.0,0.039]
[1693494316377,2.49456704,27191.0,27190.0,0.039]
[1693494316527,2.49720704,27191.0,27190.0,0.039]
[1693494316745,2.36976704,27191.0,27190.0,0.039]
[1693494316941,0.08413807,27189.0,27186.0,0.04]
[1693494317298,0.37265012,27187.0,27186.0,0.04]
[1693494317486,1.25312848,27187.0,27186.0,0.04]
[1693494317617,1.27312848,27187.0,27186.0,0.04]
[1693494317823,1.36402848,27187.0,27186.0,0.04]
[1693494318021,1.36498848,27187.0,27186.0,0.04]
[1693494318365,1.36264848,27187.0,27186.0,0.04]
[1693494318567,1.36246848,27187.0,27186.0,0.04]
[1693494318794,1.36300848,27187.0,27186.0,0.043]
[1693494318981,1.36456848,27187.0,27186.0,0.043]
[1693494319153,1.36654848,27187.0,27186.0,0.04]
[1693494319355,1.36444848,27187.0,27186.0,0.04]
[1693494319561,1.38332848,27187.0,27186.0,0.042]
[1693494319763,1.38578848,27187.0,27186.0,0.042]
[1693494319962,1.38602848,27187.0,27186.0,0.042]
[1693494320169,1.38332848,27187.0,27186.0,0.042]
[1693494320377,1.38314848,27187.0,27186.0,0.042]
[1693494320623,1.38254848,27187.0,27186.0,0.042]
[1693494320806,1.38872848,27187.0,27186.0,0.022]
[1693494321004,1.38236848,27187.0,27186.0,0.022]
[1693494321365,1.38206848,27187.0,27186.0,0.022]
[1693494321768,1.38098848,27187.0,27186.0,0.022]
[1693494321973,1.38080848,27187.0,27186.0,0.022]
[1693494322181,1.38098848,27187.0,27186.0,0.022]
[1693494322383,1.38110848,27187.0,27186.0,0.022]
[1693494322582,1.38068848,27187.0,27186.0,0.022]
[1693494322811,1.38032848,27187.0,27186.0,0.022]
[1693494323015,1.38056848,27187.0,27186.0,0.022]
[1693494323219,1.38026848,27187.0,27186.0,0.022]
[1693494323400,1.38116848,27187.0,27186.0,0.022]
[1693494323695,1.38002848,27187.0,27186.0,0.022]
[1693494323958,1.37984848,27187.0,27186.0,0.022]
[1693494324170,1.38032848,27187.0,27186.0,0.022]
[1693494324349,1.38650848,27187.0,27186.0,0.022]
[1693494324504,1.38038848,27187.0,27186.0,0.022]
[1693494324713,1.38032848,27187.0,27186.0,0.022]
[1693494324922,1.38194848,27187.0,27186.0,0.022]
[1693494325145,1.38008848,27187.0,27186.0,0.022]
[1693494325346,1.38032848,27187.0,27186.0,0.022]
[1693494325522,1.38008848,27187.0,27186.0,0.022]
[1693494325719,1.38020848,27187.0,27186.0,0.022]
[1693494325919,1.37984848,27187.0,27186.0,0.022]
[1693494326119,1.37972848,27187.0,27186.0,0.022]
[1693494326347,1.38152848,27187.0,27186.0,0.022]
[1693494326545,1.37978848,27187.0,27186.0,0.022]
[1693494326867,1.38116848,27187.0,27186.0,0.022]
[1693494327075,1.38008848,27187.0,27186.0,0.022]
[1693494327303,1.38050848,27187.0,27186.0,0.022]
[1693494327459,1.38980848,27187.0,27186.0,0.002]
[1693494327661,1.38836848,27187.0,27186.0,0.002]
[1693494327886,1.37978848,27187.0,27186.0,0.002]
[1693494328063,1.37906848,27187.0,27186.0,0.002]
[1693494328264,1.37918848,27187.0,27186.0,0.002]
[1693494328465,1.37828848,27187.0,27186.0,0.002]
[1693494328672,1.37852848,27187.0,27186.0,0.002]
[1693494328873,1.2413504,27187.0,27186.0,0.002]
[1693494329115,1.2393704,27187.0,27186.0,0.002]
[1693494329315,1.2404504,27187.0,27186.0,0.002]
[1693494329539,1.2396104,27187.0,27186.0,0.002]
[1693494329694,1.2414704,27187.0,27186.0,0.002]
[1693494329890,1.31556662,27187.0,27186.0,0.002]
[1693494330112,1.31550662,27187.0,27186.0,0.002]
[1693494330515,1.31556662,27187.0,27186.0,0.002]
[1693494330776,1.31586662,27187.0,27186.0,0.002]
[1693494331089,1.31754662,27187.0,27186.0,0.002]
[1693494331225,1.31628662,27187.0,27186.0,0.002]
[1693494331424,1.31640662,27187.0,27186.0,0.002]
[1693494331636,1.31562662,27187.0,27186.0,0.002]
[1693494331863,1.31598662,27187.0,27186.0,0.002]
[1693494332068,1.31574662,27187.0,27186.0,0.002]
[1693494332268,1.32684662,27187.0,27186.0,0.002]
[1693494332489,1.32492662,27187.0,27186.0,0.002]
[1693494332693,1.35482662,27187.0,27186.0,0.002]
[1693494333023,1.68297071,27187.0,27186.0,0.002]
[1693494333134,1.68297071,27187.0,27179.0,0.33358854]
[1693494333135,0.04,27185.0,27181.0,0.04]
[1693494333343,0.32857515,27182.0,27181.0,0.095]
[1693494333570,0.87202028,27182.0,27181.0,0.095]
[1693494333777,0.95038028,27182.0,27181.0,0.04]
[1693494333990,0.95236028,27182.0,27181.0,0.04]
[1693494334222,1.08673933,27182.0,27181.0,0.04]
[1693494334424,1.49740851,27182.0,27181.0,0.043]
[1693494334633,1.49926851,27182.0,27181.0,0.043]
[1693494334829,1.41814851,27182.0,27181.0,0.04]
[1693494335039,1.15381833,27182.0,27181.0,0.04]
[1693494335243,1.41814851,27182.0,27180.0,0.04]
[1693494335454,1.41814851,27182.0,27179.0,0.04]
[1693494335455,1.49546555,27181.0,27179.0,0.04]
[1693494335669,1.49546555,27181.0,27179.0,0.02]
[1693494335670,1.29443514,27180.0,27179.0,0.02]
[1693494335876,1.86901248,27180.0,27178.0,0.02]
[1693494336077,1.86901248,27180.0,27178.0,0.075]
[1693494336078,1.13633658,27179.0,27178.0,0.075]
[1693494336282,1.23113658,27179.0,27178.0,0.075]
[1693494336491,1.23089658,27179.0,27178.0,0.075]
[1693494336691,1.45184446,27179.0,27178.0,0.075]
[1693494336904,1.18164816,27179.0,27178.0,0.075]
[1693494337105,1.81143122,27179.0,27178.0,0.075]
[1693494337324,1.81263171,27179.0,27176.0,0.035]
[1693494337528,0.66570482,27178.0,27177.0,0.095]
[1693494337741,1.43058476,27178.0,27177.0,0.095]
[1693494337999,1.16684333,27178.0,27177.0,0.095]
[1693494338143,1.16636333,27178.0,27177.0,0.095]
[1693494338371,1.16630333,27178.0,27177.0,0.095]
[1693494338579,1.16498333,27178.0,27177.0,0.095]
[1693494338780,1.16474333,27178.0,27177.0,0.095]
[1693494339013,1.15994333,27178.0,27177.0,0.095]
[1693494339217,1.16282333,27178.0,27177.0,0.095]
[1693494339426,1.16186333,27178.0,27177.0,0.095]
[1693494339623,1.15304333,27178.0,27177.0,0.095]
[1693494339834,1.15616333,27178.0,27177.0,0.095]
[1693494340033,1.15988333,27178.0,27177.0,0.095]
[1693494340257,1.16744333,27178.0,27177.0,0.095]
[1693494340449,1.16456333,27178.0,27177.0,0.095]
[1693494340648,1.18536333,27178.0,27177.0,0.095]
[1693494340858,1.05873896,27178.0,27177.0,0.095]
[1693494341068,1.06029896,27178.0,27177.0,0.095]
[1693494341327,1.06101896,27178.0,27177.0,0.095]
[1693494341530,1.06137896,27178.0,27177.0,0.095]
[1693494341846,1.06125896,27178.0,27177.0,0.095]
[1693494342049,1.06131896,27178.0,27177.0,0.095]
[1693494342197,1.06317896,27178.0,27177.0,0.095]
[1693494342400,1.06323896,27178.0,27177.0,0.095]
[1693494342600,1.06341896,27178.0,27177.0,0.095]
[1693494342808,1.06335896,27178.0,27177.0,0.095]
[1693494343009,1.06293896,27178.0,27177.0,0.095]
[1693494343229,1.06299896,27178.0,27177.0,0.095]
[1693494343430,1.06335896,27178.0,27177.0,0.095]
[1693494343633,1.06305896,27178.0,27177.0,0.095]
[1693494343831,1.06299896,27178.0,27177.0,0.095]
[1693494344099,1.06185896,27178.0,27177.0,0.095]
[1693494344300,1.06173896,27178.0,27177.0,0.095]
[1693494344506,1.05993896,27178.0,27177.0,0.095]
[1693494344717,1.06113896,27178.0,27177.0,0.095]
[1693494344920,1.05993896,27178.0,27177.0,0.095]
[1693494345065,1.05969896,27178.0,27177.0,0.095]
[1693494345265,0.98175896,27178.0,27177.0,0.095]
[1693494345722,1.05915896,27178.0,27177.0,0.095]
[1693494345923,1.05927896,27178.0,27177.0,0.095]
[1693494346099,1.05939896,27178.0,27177.0,0.095]
[1693494346281,1.05993896,27178.0,27177.0,0.095]
[1693494346517,1.06035896,27178.0,27177.0,0.095]
[1693494346685,1.05567896,27178.0,27177.0,0.095]
[1693494346883,1.09125896,27178.0,27177.0,0.098]
[1693494347087,1.09131896,27178.0,27177.0,0.098]
[1693494347284,1.09149896,27178.0,27177.0,0.098]
[1693494347492,1.12069404,27178.0,27177.0,0.098]
[1693494348058,1.12087404,27178.0,27177.0,0.098]
[1693494348241,1.04719404,27178.0,27177.0,0.098]
[1693494348655,1.12129404,27178.0,27177.0,0.098]
[1693494348863,1.04719404,27178.0,27177.0,0.098]
[1693494349905,1.11997404,27178.0,27177.0,0.098]